bitfinex/quotes_SOLUSD_20240808
["timestamp","ask_amount","ask_price","bid_price","bid_amount"]
[1723100489056,45.34,154.59,154.56,6.4772]
[1723100489238,45.0,154.58,154.56,6.4772]
[1723100489440,0.34,154.57,154.56,6.4772]
[1723100489823,6.47,154.56,154.52,6.2001]
[1723100490038,45.34,154.55,154.52,6.2001]
[1723100490441,6.4713,154.53,154.49,6.5795]
[1723100490654,45.17,154.52,154.49,6.5795]
[1723100490873,45.17,154.51,154.49,6.5795]
[1723100491056,0.34,154.51,154.49,6.5795]
[1723100491269,0.17,154.51,154.49,6.5795]
[1723100491850,45.17,154.55,154.49,6.5795]
[1723100492049,0.17,154.54,154.49,6.5795]
[1723100494263,395.5687,154.59,154.5,16.4627]
[1723100494264,389.1,154.59,154.5,16.4627]
[1723100494446,389.1,154.59,154.51,6.1837]
[1723100494974,389.1,154.59,154.53,22.6464]
[1723100495268,6.4653,154.67,154.54,6.1837]
[1723100495448,14.45186201,154.68,154.56,6.3406]
[1723100496246,6.4649,154.68,154.56,6.3406]
[1723100496570,6.4645,154.69,154.56,6.6204]
[1723100496957,6.79884309,154.69,154.58,6.6204]
[1723100497388,6.4645,154.69,154.58,6.6204]
[1723100498173,6.4656,154.67,154.58,6.6204]
[1723100498357,0.33434309,154.66,154.58,6.6204]
[1723100498560,6.80014309,154.66,154.58,6.6204]
[1723100498778,0.33434309,154.66,154.58,6.6204]
[1723100498946,0.34,154.65,154.58,6.6204]
[1723100499151,0.34,154.66,154.58,6.6204]
[1723100500079,7.98696201,154.69,154.58,6.6204]
[1723100500870,14.45156201,154.69,154.58,6.6204]
[1723100501183,7.98696201,154.69,154.58,6.6204]
[1723100501565,0.33434309,154.68,154.58,6.6204]
[1723100502078,0.33434309,154.67,154.58,6.6204]
[1723100502279,45.33434309,154.67,154.58,6.6204]
[1723100502485,0.17,154.66,154.58,6.6204]
[1723100503266,0.34,154.66,154.58,6.6204]
[1723100503755,7.14014309,154.66,154.58,6.6204]
[1723100503955,51.4662,154.65,154.58,6.6204]
[1723100504168,0.34,154.64,154.58,6.6204]
[1723100504378,36.23,154.61,154.58,6.6204]
[1723100504559,0.33434309,154.6,154.58,6.6204]
[1723100504759,6.8087,154.59,154.58,6.6204]
[1723100504959,65.34,154.59,154.54,6.2483]
[1723100505182,36.23,154.57,154.54,6.2483]
[1723100505384,45.67434309,154.56,154.54,6.2483]
[1723100505585,6.4703,154.55,154.41,16.6525]
[1723100507982,389.1,154.59,154.48,6.0384]
[1723100508181,445.33,154.64,154.49,27.33253364]
[1723100508401,0.33434309,154.63,154.49,26.0384]
[1723100508688,20.0,154.62,154.49,26.0384]
[1723100508893,6.4683,154.6,154.49,6.0384]
[1723100509100,6.80264309,154.6,154.49,6.0384]
[1723100509486,6.4687,154.59,154.49,6.0384]
[1723100509691,45.34,154.58,154.49,6.0384]
[1723100510386,0.34,154.58,154.49,6.0384]
[1723100510585,0.50434309,154.58,154.49,6.0384]
[1723100510904,0.50434309,154.57,154.49,6.0384]
[1723100511107,0.17,154.56,154.49,6.0384]
[1723100511994,0.33434309,154.55,154.49,6.0384]
[1723100512298,0.17,154.54,154.49,6.0384]
[1723100512505,0.67434309,154.54,154.49,6.0384]
[1723100512677,36.90434309,154.54,154.49,6.0384]
[1723100512976,45.0,154.53,154.49,6.0384]
[1723100513178,0.67434309,154.52,154.49,6.0384]
[1723100513504,36.23,154.51,154.47,15.5123]
[1723100513705,65.34,154.5,154.45,6.5256]
[1723100514079,45.34,154.5,154.45,6.5256]
[1723100515172,0.34,154.5,154.45,6.5256]
[1723100515396,0.17,154.49,154.45,6.5256]
[1723100515607,45.17,154.51,154.45,6.5256]
[1723100516121,389.1,154.52,154.45,6.5256]
[1723100516506,6.74221087,154.57,154.47,6.2951]
[1723100516683,389.1,154.61,154.5,6.2951]
[1723100516881,6.4668,154.64,154.52,6.2951]
[1723100517186,6.4671,154.63,154.52,6.2951]
[1723100517391,6.80144309,154.63,154.52,6.2951]
[1723100518093,0.33434309,154.62,154.52,6.2951]
[1723100518398,56.23,154.6,154.52,6.2951]
[1723100518584,20.0,154.58,154.52,6.2951]
[1723100518901,45.34,154.57,154.52,6.2951]
[1723100519201,51.8096,154.57,154.52,6.2951]
[1723100519785,56.23,154.54,154.49,15.0512]
[1723100519988,56.23,154.54,154.48,6.0347]
[1723100519989,45.67434309,154.53,154.48,6.0347]
[1723100520206,26.4721,154.51,154.48,6.0347]
[1723100520530,45.34,154.5,154.48,6.0347]
[1723100520730,0.34,154.5,154.48,6.0347]
[1723100520898,45.0,154.49,154.48,6.0347]
[1723100521102,45.34,154.49,154.48,6.0347]
[1723100521304,45.34,154.49,154.44,23.1375]
[1723100521518,6.4739,154.47,154.44,23.1375]
[1723100521703,45.67434309,154.46,154.44,23.1375]
[1723100522018,45.34,154.46,154.44,23.1375]
[1723100522220,0.34,154.46,154.44,23.1375]
[1723100522413,45.0,154.45,154.44,6.5646]
[1723100522726,45.34,154.45,154.4,0.8149203]
[1723100522925,0.34,154.44,154.4,0.8149203]
[1723100524234,20.0,154.42,154.4,0.8149203]
[1723100524416,45.50434309,154.41,154.4,0.8149203]
[1723100524609,0.34,154.41,154.4,0.8149203]
[1723100524933,6.4725,154.5,154.4,0.8149203]
[1723100525139,0.17,154.49,154.4,0.8149203]
[1723100525799,0.17,154.49,154.41,6.4565]
[1723100526116,6.643,154.49,154.41,6.4565]
[1723100526439,45.17,154.48,154.41,6.4565]
[1723100526611,0.17,154.47,154.41,6.4565]
[1723100526811,0.17,154.48,154.41,6.4565]
[1723100526812,6.473,154.49,154.41,6.4565]
[1723100527021,20.33434309,154.48,154.41,6.4565]
[1723100527731,6.4746,154.45,154.41,6.4565]
[1723100527913,0.17,154.44,154.41,6.4565]
[1723100528119,45.34,154.44,154.41,6.4565]
[1723100528325,51.815,154.44,154.41,6.4565]
[1723100528635,45.34,154.44,154.41,6.4565]
[1723100528836,45.0,154.43,154.41,6.4565]
[1723100529018,0.34,154.42,154.41,6.4565]
[1723100529536,0.34,154.42,154.4,0.8149203]
[1723100529740,6.8159,154.42,154.4,0.8149203]
[1723100529908,45.0,154.41,154.4,0.8149203]
[1723100530237,65.34,154.41,154.4,0.8149203]
[1723100530414,45.34,154.41,154.4,0.8149203]
[1723100534329,2.65257714,154.46,154.4,0.8149203]
[1723100534707,6.72606676,154.47,154.4,0.8149203]
[1723100535235,2.61822344,154.52,154.4,0.8149203]
[1723100535434,6.71330849,154.49,154.4,0.8149203]
[1723100535738,6.4725,154.5,154.4,0.8149203]
[1723100535937,20.0,154.48,154.4,0.8149203]
[1723100536126,26.4734,154.48,154.4,0.8149203]
[1723100536328,20.0,154.45,154.4,0.8149203]
[1723100536534,20.0,154.43,154.4,0.8149203]
[1723100536849,0.17,154.42,154.4,0.8149203]
[1723100537027,0.34,154.42,154.4,0.8149203]
[1723100537424,27.09210535,154.49,154.4,0.8149203]
[1723100537425,20.33434309,154.46,154.4,0.8149203]
[1723100537744,26.4745,154.45,154.4,0.8149203]
[1723100538119,26.4758,154.42,154.4,0.8149203]
[1723100538322,6.4751,154.44,154.4,0.8149203]
[1723100538869,0.34,154.43,154.4,0.8149203]
[1723100539547,0.17,154.42,154.4,0.8149203]
[1723100539729,0.17,154.43,154.4,0.8149203]
[1723100539924,0.34,154.44,154.4,0.8149203]
[1723100540752,20.34,154.44,154.4,0.8149203]
[1723100541336,0.34,154.44,154.4,0.8149203]
[1723100541536,0.17,154.43,154.4,0.8149203]
[1723100541741,389.1,154.46,154.4,0.8149203]
[1723100542634,389.1,154.46,154.41,15.8109]
[1723100544055,6.71368571,154.5,154.41,15.8109]
[1723100544056,6.71368571,154.5,154.42,6.0138]
[1723100544226,6.4712,154.53,154.42,6.0138]
[1723100544420,6.71127016,154.52,154.42,6.0138]
[1723100545741,2.66176759,154.57,154.43,1.29486674]
[1723100545928,6.4704,154.55,154.43,1.29486674]
[1723100546128,6.71185092,154.54,154.43,1.29486674]
[1723100546532,29.72080535,154.6,154.43,1.29486674]
[1723100546533,27.63210535,154.6,154.46,6.5808]
[1723100546737,20.0,154.62,154.47,1.29444199]
[1723100546943,6.71082768,154.57,154.49,6.5808]
[1723100547152,6.4666,154.65,154.51,6.5808]
[1723100547461,6.70804905,154.62,154.52,1.29399809]
[1723100547647,6.4671,154.63,154.52,1.29399809]
[1723100547959,7.04278379,154.62,154.51,6.5808]
[1723100548140,20.0,154.59,154.51,6.5808]
[1723100548330,0.34,154.58,154.51,6.5808]
[1723100548756,6.8092,154.58,154.51,6.5808]
[1723100548960,6.4696,154.57,154.51,6.5808]
[1723100549134,0.34,154.56,154.51,6.5808]
[1723100549334,6.81,154.56,154.51,6.5808]
[1723100549553,6.4705,154.55,154.51,6.5808]
[1723100549758,0.34,154.54,154.51,6.5808]
[1723100550660,0.34,154.54,154.48,15.4572]
[1723100551271,20.0,154.53,154.48,15.4572]
[1723100551438,0.34,154.52,154.46,6.1151]
[1723100552058,6.4729,154.49,154.46,6.1151]
[1723100552263,0.34,154.48,154.46,6.1151]
[1723100552437,7.14774309,154.48,154.43,15.905]
[1723100552632,0.34,154.48,154.43,15.905]
[1723100555335,7.63210535,154.51,154.43,15.905]
[1723100555566,389.1,154.55,154.44,1.29507107]
[1723100555873,6.4702,154.56,154.44,1.29507107]
[1723100556072,14.10170535,154.57,154.44,1.29507107]
[1723100556242,14.10170535,154.57,154.45,6.3635]
[1723100556558,6.4692,154.58,154.46,1.29452802]
[1723100556754,56.23,154.61,154.46,1.29452802]
[1723100556755,6.4687,154.59,154.46,1.29452802]
[1723100557064,6.4683,154.6,154.48,16.1872]
[1723100557242,6.7084407,154.62,154.49,1.29431567]
[1723100557438,6.7084407,154.62,154.5,6.5745]
[1723100557649,7.04278379,154.62,154.5,6.5745]
[1723100557851,6.7084407,154.62,154.5,6.5745]
[1723100558066,36.56434309,154.61,154.5,6.5745]
[1723100558267,56.23,154.58,154.5,6.5745]
[1723100558484,20.0,154.54,154.48,16.1872]
[1723100558656,6.4716,154.53,154.48,16.1872]
[1723100558851,6.8116,154.52,154.48,16.1872]
[1723100559258,0.34,154.52,154.48,16.1872]
[1723100559984,20.0,154.51,154.46,6.578]
[1723100560184,0.34,154.5,154.46,6.578]
[1723100560769,26.4729,154.49,154.46,6.578]
[1723100560965,6.8133,154.48,154.46,6.578]
[1723100561888,0.34,154.48,154.46,6.578]
[1723100562261,26.8137,154.48,154.46,6.578]
[1723100562590,20.0,154.44,154.38,15.7662]
[1723100562780,6.4754,154.43,154.38,15.7662]
[1723100562972,0.17,154.42,154.38,15.7662]
[1723100563576,6.4758,154.42,154.38,15.7662]
[1723100563770,0.34,154.41,154.38,15.7662]
[1723100564886,0.34,154.41,154.37,6.0958]
[1723100565698,6.8162,154.41,154.37,6.0958]
[1723100566484,0.34,154.41,154.37,6.0958]
[1723100567385,0.17,154.41,154.37,6.0958]
[1723100568786,389.1,154.46,154.37,6.0958]
[1723100569086,6.71186995,154.44,154.37,6.0958]
[1723100569471,20.0,154.51,154.37,6.0958]
[1723100569796,6.71102128,154.47,154.38,1.29527338]
[1723100569967,26.472,154.51,154.41,15.1296]
[1723100570293,6.71239171,154.48,154.41,15.1296]
[1723100570477,0.33434309,154.47,154.41,15.1296]
[1723100570682,6.4742,154.46,154.41,15.1296]
[1723100570868,6.71399055,154.46,154.41,15.1296]
[1723100571187,45.34,154.45,154.41,15.1296]
[1723100571788,20.0,154.44,154.37,6.0958]
[1723100571988,45.34,154.43,154.37,6.0958]
[1723100572291,45.34,154.43,154.37,7.39144297]
[1723100572493,45.34,154.43,154.37,6.0958]
[1723100573487,0.34,154.43,154.37,6.0958]
[1723100575970,389.1,154.48,154.37,6.0958]
[1723100576166,6.4739,154.47,154.37,6.0958]
[1723100576378,6.4741,154.46,154.37,6.0958]
[1723100576796,6.71673076,154.48,154.37,6.0958]
[1723100577280,389.1,154.53,154.41,21.7371]
[1723100577476,6.71494236,154.52,154.41,21.7371]
[1723100577778,6.4725,154.5,154.41,21.7371]
[1723100577978,6.71494236,154.52,154.41,21.7371]
[1723100578498,6.472,154.51,154.41,21.7371]
[1723100578716,6.71494236,154.52,154.42,1.29505662]
[1723100578875,6.71494236,154.52,154.42,1.2948044]
[1723100579071,13.18664236,154.52,154.41,21.7371]
[1723100579601,0.33434309,154.51,154.41,21.7371]
[1723100579783,13.18664236,154.52,154.41,21.7371]
[1723100580299,45.34,154.51,154.41,21.7371]
[1723100580512,45.67434309,154.51,154.41,21.7371]
[1723100580689,45.34,154.51,154.41,21.7371]
[1723100581198,45.34,154.51,154.42,1.29497157]
[1723100581397,45.34,154.51,154.43,1.29481313]
[1723100581572,6.71494236,154.52,154.43,1.29481313]
[1723100582006,7.20795146,154.57,154.45,15.546]
[1723100582170,7.20795146,154.57,154.46,1.29442667]
[1723100582591,7.20795146,154.57,154.45,15.546]
[1723100583190,13.67745146,154.57,154.46,1.29447347]
[1723100583397,13.67745146,154.57,154.45,15.546]
[1723100583703,13.67745146,154.57,154.46,1.29447327]
[1723100583883,0.17,154.56,154.45,15.546]
[1723100584203,45.34,154.56,154.46,1.29447312]
[1723100584883,45.34,154.56,154.45,15.546]
[1723100585286,45.0,154.55,154.45,15.546]
[1723100585479,0.34,154.54,154.45,15.546]
[1723100586878,6.8108,154.54,154.45,15.546]
[1723100587080,51.4712,154.53,154.45,15.546]
[1723100587300,45.34,154.52,154.45,15.546]
[1723100587509,0.17,154.51,154.45,15.546]
[1723100588008,6.6423,154.51,154.45,15.546]
[1723100588212,45.17,154.5,154.45,15.546]
[1723100588416,0.17,154.49,154.45,15.546]
[1723100589103,45.17,154.5,154.46,6.0391]
[1723100589412,13.67795146,154.56,154.46,6.0391]
[1723100589703,7.54229455,154.56,154.46,6.0391]
[1723100590074,6.4704,154.55,154.46,6.0391]
[1723100590275,7.20795146,154.56,154.46,7.3337711]
[1723100591020,6.71417707,154.58,154.46,7.3337711]
[1723100591217,6.71417707,154.58,154.48,6.02]
[1723100591391,7.20795146,154.6,154.5,6.02]
[1723100591717,7.20795146,154.6,154.51,1.29404712]
[1723100592008,7.20795146,154.6,154.52,1.29407422]
[1723100592313,6.71261807,154.62,154.5,6.02]
[1723100592314,27.04696116,154.62,154.5,6.02]
[1723100592490,34.25491262,154.62,154.5,6.02]
[1723100592800,6.4678,154.61,154.5,6.02]
[1723100592984,6.4678,154.61,154.5,7.31408334]
[1723100593495,6.4683,154.6,154.5,6.02]
[1723100594308,65.34,154.59,154.5,6.02]
[1723100594607,0.33434309,154.58,154.5,6.02]
[1723100594825,6.4718,154.52,154.5,6.02]
[1723100594982,0.34,154.51,154.5,6.02]
[1723100595792,0.17,154.51,154.5,6.02]
[1723100597299,7.20795146,154.58,154.5,6.02]
[1723100598417,6.71261807,154.62,154.52,6.3759]
[1723100598617,6.71261807,154.62,154.53,1.2939868]
[1723100598790,13.18001807,154.62,154.53,1.2939868]
[1723100598995,13.18001807,154.62,154.52,6.3759]
[1723100599599,6.71261807,154.62,154.53,16.6429]
[1723100599921,6.4666,154.64,154.54,6.4569]
[1723100600102,13.17386329,154.64,154.54,6.4569]
[1723100601221,7.20795146,154.63,154.54,6.4569]
[1723100601599,6.468,154.61,154.54,6.4569]
[1723100601818,0.33434309,154.62,154.54,6.4569]
[1723100601998,6.4683,154.6,154.54,6.4569]
[1723100602196,45.34,154.59,154.54,6.4569]
[1723100602393,0.17,154.58,154.54,6.4569]
[1723100603121,0.17,154.61,154.54,6.4569]
[1723100603325,45.17,154.62,154.54,6.4569]
[1723100604235,51.6377,154.62,154.54,6.4569]
[1723100604795,45.17,154.62,154.54,6.4569]
[1723100605021,6.4662,154.65,154.54,6.4569]
[1723100605222,7.20795146,154.67,154.56,6.1217]
[1723100605430,7.20795146,154.67,154.59,15.5514]
[1723100606334,13.67335146,154.67,154.59,15.5514]
[1723100607405,6.4674,154.62,154.59,15.5514]
[1723100607710,51.4679,154.61,154.59,15.5514]
[1723100607903,0.34,154.6,154.59,15.5514]
[1723100608099,0.17,154.6,154.59,15.5514]
[1723100608602,7.20795146,154.66,154.59,15.5514]
[1723100608808,45.17,154.65,154.59,15.5514]
[1723100609025,6.4667,154.64,154.59,15.5514]
[1723100609220,45.17,154.63,154.59,15.5514]
[1723100609426,0.17,154.62,154.59,15.5514]
[1723100609819,0.34,154.62,154.59,15.5514]
[1723100610504,13.67375146,154.66,154.59,15.5514]
[1723100610505,7.20795146,154.66,154.59,15.5514]
[1723100610696,45.34,154.65,154.59,15.5514]
[1723100613624,51.8062,154.65,154.59,15.5514]
[1723100613832,45.34,154.65,154.59,15.5514]
[1723100614030,7.20795146,154.64,154.59,15.5514]
[1723100614233,51.6372,154.63,154.59,15.5514]
[1723100614404,0.17,154.62,154.59,15.5514]
[1723100614610,6.6376,154.62,154.59,15.5514]
[1723100614818,45.17,154.61,154.59,15.5514]
[1723100615012,0.17,154.6,154.59,15.5514]
[1723100615715,45.17,154.61,154.59,15.5514]
[1723100615906,0.17,154.6,154.59,15.5514]
[1723100616537,0.17,154.6,154.47,6.2345]
[1723100616538,36.1752,154.56,154.47,6.2345]
[1723100616736,36.22,154.52,154.47,6.2345]
[1723100616913,0.33434309,154.55,154.47,6.2345]
[1723100616914,8.48783465,154.55,154.47,6.2345]
[1723100617223,21.19187706,154.6,154.5,15.3687]
[1723100617422,45.17,154.59,154.5,16.66280551]
[1723100617635,45.2871892,154.64,154.51,6.5407]
[1723100617804,45.0,154.63,154.52,1.29393693]
[1723100618508,45.0,154.63,154.53,6.1375]
[1723100618725,53.66450132,154.63,154.54,1.29384611]
[1723100618933,0.17,154.62,154.54,1.29384611]
[1723100619309,0.17,154.62,154.55,1.29384485]
[1723100619929,0.17,154.62,154.56,15.8853]
[1723100620127,8.66450132,154.63,154.57,1.29373542]
[1723100620431,8.66450132,154.63,154.58,6.297]
[1723100621635,45.34,154.62,154.58,6.297]
[1723100622212,44.88450132,154.61,154.56,15.8853]
[1723100622418,0.34,154.6,154.56,15.8853]
[1723100622631,54.00450132,154.6,154.56,15.8853]
[1723100622834,6.4687,154.59,154.56,15.8853]
[1723100623020,45.34,154.58,154.56,15.8853]
[1723100624506,0.34,154.58,154.56,15.8853]
[1723100624705,8.66450132,154.6,154.56,15.8853]
[1723100625719,6.16308326,154.65,154.57,1.2939168]
[1723100626040,8.66450132,154.65,154.56,15.8853]
[1723100626211,15.13070132,154.65,154.56,15.8853]
[1723100626413,8.66450132,154.64,154.56,15.8853]
[1723100626916,0.17,154.63,154.56,15.8853]
[1723100627231,45.34,154.63,154.56,15.8853]
[1723100628649,15.13200132,154.62,154.56,15.8853]
[1723100628818,45.34,154.61,154.56,15.8853]
[1723100636243,8.66450132,154.66,154.57,6.5759]
[1723100636463,6.4666,154.64,154.57,6.5759]
[1723100636754,6.4662,154.65,154.57,6.5759]
[1723100636934,33.79615149,154.65,154.57,6.5759]
[1723100637258,15.13130132,154.64,154.57,6.5759]
[1723100637560,6.4671,154.63,154.57,6.5759]
[1723100637851,8.66450132,154.63,154.57,6.5759]
[1723100638057,45.34,154.62,154.57,6.5759]
[1723100639350,0.34,154.62,154.58,1.29364601]
[1723100639646,8.66450132,154.67,154.58,1.29364601]
[1723100640024,8.66450132,154.67,154.57,6.5759]
[1723100640234,15.13000132,154.67,154.57,6.5759]
[1723100640430,15.13000132,154.67,154.56,15.8853]
[1723100640431,2.62114078,154.68,154.58,15.3285]
[1723100640652,6.71184586,154.7,154.59,7.42869796]
[1723100640860,46.06108225,154.72,154.59,7.42869796]
[1723100641060,3.37778225,154.72,154.61,6.429]
[1723100641233,3.37778225,154.72,154.62,1.29316156]
[1723100641558,11.66247766,154.71,154.62,1.29316156]
[1723100641761,30.32244007,154.7,154.62,1.29316156]
[1723100642061,6.01855607,154.72,154.62,1.29316156]
[1723100642240,11.66240786,154.71,154.61,6.429]
[1723100642447,30.32226044,154.7,154.61,6.429]
[1723100642761,11.66240786,154.69,154.62,16.1038]
[1723100642937,9.84068225,154.73,154.63,6.4359]
[1723100643143,30.32225571,154.72,154.63,7.72900993]
[1723100643338,6.71304025,154.74,154.65,6.4043]
[1723100643561,3.37778225,154.77,154.67,22.0529]
[1723100643863,11.6589797,154.76,154.68,1.29266573]
[1723100644054,30.31334722,154.75,154.68,1.29266573]
[1723100644252,8.20043478,154.78,154.68,1.29266573]
[1723100644438,11.65832102,154.77,154.68,1.29266573]
[1723100644764,11.65832102,154.76,154.68,1.29266573]
[1723100644976,4.82265253,154.78,154.68,1.29266573]
[1723100645139,11.65818493,154.77,154.68,1.29266573]
[1723100645336,11.65818493,154.76,154.68,1.29266573]
[1723100645538,4.82265253,154.78,154.67,22.0529]
[1723100645837,12.0,154.79,154.7,6.2069]
[1723100646040,12.0,154.79,154.7,7.4991403]
[1723100646558,12.0,154.79,154.71,1.29232355]
[1723100646767,12.0,154.79,154.72,1.29247064]
[1723100646957,12.0,154.79,154.7,7.49933857]
[1723100647180,12.0,154.79,154.7,6.2069]
[1723100647753,51.4608,154.78,154.7,6.2069]
[1723100648037,0.17,154.77,154.7,6.2069]
[1723100649756,6.462,154.76,154.7,6.2069]
[1723100649953,45.34,154.75,154.7,6.2069]
[1723100651065,45.34,154.75,154.59,15.3998]
[1723100651066,6.4645,154.7,154.59,15.3998]
[1723100651268,45.0,154.69,154.59,15.3998]
[1723100651480,0.17,154.68,154.59,15.3998]
[1723100651655,0.17,154.68,154.6,1.29338785]
[1723100651850,0.17,154.68,154.61,1.29328573]
[1723100652046,0.17,154.68,154.59,15.3998]
[1723100653076,6.635,154.68,154.59,15.3998]
[1723100653368,45.17,154.67,154.59,15.3998]
[1723100653538,0.17,154.66,154.59,15.3998]
[1723100654055,0.17,154.66,154.6,7.63465985]
[1723100654265,45.17,154.67,154.6,6.3413]
[1723100654456,0.17,154.66,154.6,6.3413]
[1723100655967,0.17,154.67,154.6,6.3413]
[1723100656168,0.17,154.67,154.61,1.29345196]
[1723100656668,36.22,154.73,154.61,1.29345196]
[1723100656848,6.71813521,154.73,154.62,15.7629]
[1723100657052,5.70439785,154.74,154.63,7.91188565]
[1723100657566,6.71899099,154.76,154.63,7.91188565]
[1723100657769,395.5609,154.78,154.63,7.91188565]
[1723100657770,7.79776243,154.78,154.65,22.3819]
[1723100658075,14.51553431,154.78,154.66,1.29260529]
[1723100658372,7.79074353,154.77,154.66,1.29260529]
[1723100658881,7.79074353,154.77,154.67,6.619]
[1723100659049,6.71777188,154.78,154.7,6.619]
[1723100659248,6.0659289,154.79,154.7,6.619]
[1723100660352,13.85667243,154.79,154.7,6.619]
[1723100660573,6.4616,154.76,154.7,6.619]
[1723100660751,6.4612,154.77,154.7,6.619]
[1723100661072,0.17,154.76,154.7,6.619]
[1723100661374,45.34,154.77,154.7,6.619]
[1723100662170,51.8012,154.77,154.7,6.619]
[1723100664268,0.33434309,154.76,154.7,6.619]
[1723100664469,6.802,154.75,154.7,6.619]
[1723100664776,45.0,154.74,154.7,6.619]
[1723100664977,0.34,154.73,154.7,6.619]
[1723100667178,7.79074353,154.76,154.7,6.619]
[1723100667970,14.25234353,154.76,154.7,6.619]
[1723100668354,45.17,154.75,154.7,6.619]
[1723100668765,0.17,154.74,154.7,6.619]
[1723100669950,6.0659289,154.79,154.7,6.619]
[1723100670149,12.5262289,154.79,154.7,6.619]
[1723100670385,6.461,154.78,154.7,6.619]
[1723100671478,45.34,154.77,154.7,6.619]
[1723100671850,51.8013,154.77,154.7,6.619]
[1723100672254,45.34,154.77,154.7,6.619]
[1723100673057,0.34,154.77,154.71,1.29261985]
[1723100673266,6.0659289,154.79,154.72,15.2393]
[1723100673460,6.0659289,154.79,154.73,6.3039]
[1723100674867,45.34,154.78,154.73,6.3039]
[1723100675580,6.0659289,154.79,154.74,1.29229844]
[1723100676870,6.0659289,154.79,154.75,15.3561]
[1723100677055,389.1,154.83,154.77,6.6628]
[1723100678462,14.24784353,154.87,154.77,6.6628]
[1723100678775,7.79074353,154.87,154.79,6.5164]
[1723100679085,7.79074353,154.87,154.77,1.29185455]
[1723100679086,7.79074353,154.87,154.8,21.6948]
[1723100679459,14.24774353,154.87,154.8,21.6948]
[1723100679661,23.17108161,154.87,154.8,21.6948]
[1723100679859,16.71408161,154.87,154.8,21.6948]
[1723100680075,0.34,154.86,154.81,1.29177611]
[1723100680282,16.71408161,154.87,154.8,21.6948]
[1723100682161,6.71236883,154.92,154.81,6.0972]
[1723100682382,16.71408161,154.92,154.83,6.6165]
[1723100684190,16.71408161,154.92,154.85,6.0594]
[1723100686086,0.17,154.91,154.85,6.0594]
[1723100686277,16.71408161,154.92,154.85,6.0594]
[1723100689803,0.8457099,154.95,154.86,22.0542]
[1723100690391,9.76904798,154.95,154.86,22.0542]
[1723100690974,0.17,154.94,154.86,22.0542]
[1723100691170,0.17,154.94,154.86,15.7231]
[1723100691368,0.8457099,154.95,154.89,6.1697]
[1723100692790,0.8457099,154.95,154.9,1.29078934]
[1723100692971,0.8457099,154.95,154.91,16.3783]
[1723100694496,0.34,154.94,154.91,16.3783]
[1723100694693,45.34,154.94,154.91,16.3783]
[1723100695706,9.76904798,154.95,154.91,16.3783]
[1723100696197,8.92333808,154.94,154.89,6.1697]
[1723100696613,0.33434309,154.93,154.89,6.1697]
[1723100696780,6.78884309,154.93,154.89,6.1697]
[1723100696982,0.33434309,154.93,154.89,6.1697]
[1723100697610,15.37743808,154.94,154.89,6.1697]
[1723100697804,45.34,154.93,154.89,6.1697]
[1723100698183,0.34,154.93,154.89,6.1697]
[1723100698511,0.17,154.93,154.89,6.1697]
[1723100698722,8.92333808,154.94,154.89,6.1697]
[1723100699303,45.33434309,154.93,154.89,6.1697]
[1723100699505,9.09333808,154.92,154.89,6.1697]
[1723100699879,8.92333808,154.92,154.89,6.1697]
[1723100700817,0.17,154.93,154.89,6.1697]
[1723100701117,0.34,154.94,154.89,6.1697]
[1723100701322,0.17,154.94,154.89,6.1697]